bitfinex-derivatives/quotes_BTCF0:USTF0_20220102
["timestamp","ask_amount","ask_price","bid_price","bid_amount"]
[1641155110396,0.74730032,46975.0,46974.0,0.33143098]
[1641155110695,0.61230032,46975.0,46974.0,0.15243098]
[1641155111498,0.15253342,46975.0,46974.0,1.65112043]
[1641155112004,0.75730032,46975.0,46974.0,1.65112043]
[1641155112605,0.75730032,46975.0,46974.0,1.47312043]
[1641155112809,0.61230032,46975.0,46974.0,1.47312043]
[1641155113402,0.76130032,46975.0,46974.0,1.64912043]
[1641155113708,0.76130032,46975.0,46974.0,0.32843098]
[1641155114704,0.61230032,46975.0,46974.0,0.15243098]
[1641155115306,0.75730032,46975.0,46974.0,0.33043098]
[1641155116209,0.84507032,46975.0,46974.0,1.6529616]
[1641155116505,0.84507032,46975.0,46974.0,0.33043098]
[1641155116704,0.84507032,46975.0,46974.0,0.15243098]
[1641155116906,0.70007032,46975.0,46974.0,0.15243098]
[1641155117304,0.87307032,46975.0,46974.0,0.32643098]
[1641155117704,0.87307032,46975.0,46974.0,0.31433567]
[1641155117905,0.87307032,46975.0,46974.0,0.32643078]
[1641155118809,0.70007032,46975.0,46974.0,0.15243078]
[1641155119406,0.87307032,46975.0,46974.0,0.32643078]
[1641155119609,0.35903313,46975.0,46974.0,1.65153176]
[1641155119807,0.27126313,46975.0,46974.0,1.65153176]
[1641155120204,0.27126313,46975.0,46974.0,0.32643078]
[1641155120205,0.18053342,46975.0,46974.0,0.32643078]
[1641155120606,0.785383,46975.0,46974.0,0.32643078]
[1641155121210,0.700653,46975.0,46974.0,0.15243078]
[1641155121413,0.846653,46975.0,46974.0,0.33043078]
[1641155122611,0.700653,46975.0,46974.0,0.15243078]
[1641155123013,0.700653,46975.0,46974.0,1.4771443]
[1641155123412,0.849653,46975.0,46974.0,1.6531443]
[1641155124612,0.09580342,46975.0,46974.0,1.4771443]
[1641155124814,0.18653268,46975.0,46974.0,1.4771443]
[1641155125428,0.35853268,46975.0,46974.0,1.6511443]
[1641155126729,1.03335259,46975.0,46974.0,1.4771443]
[1641155127330,1.20635259,46975.0,46974.0,1.6511443]
[1641155128633,0.35953268,46975.0,46974.0,1.6511443]
[1641155129234,0.26880342,46975.0,46974.0,1.6511443]
[1641155129434,1.01066594,46975.0,46974.0,1.8281443]
[1641155130735,0.70066594,46975.0,46974.0,1.4771443]
[1641155131336,0.84166594,46975.0,46974.0,1.6521443]
[1641155132339,1.02166594,46975.0,46974.0,1.6521443]
[1641155132540,1.05275278,46975.0,46974.0,1.51180863]
[1641155132743,0.39761941,46975.0,46974.0,1.32471352]
[1641155132944,0.5185849,46975.0,46974.0,1.32471352]
[1641155133339,0.7065849,46975.0,46974.0,1.32471352]
[1641155133740,0.80550413,46975.0,46974.0,1.32471352]
[1641155134143,0.80550413,46975.0,46974.0,0.8427101]
[1641155134741,0.61750413,46975.0,46974.0,0.8427101]
[1641155135143,0.61750413,46975.0,46974.0,0.60136783]
[1641155135144,1.94670614,46975.0,46974.0,0.60136783]
[1641155135338,2.13670614,46975.0,46974.0,0.60136783]
[1641155136440,1.95670614,46975.0,46974.0,0.60136783]
[1641155136638,1.76670614,46975.0,46974.0,0.60136783]
[1641155137341,1.95670614,46975.0,46974.0,0.60136783]
[1641155138143,0.62750413,46975.0,46974.0,0.60136783]
[1641155138743,0.61750413,46975.0,46974.0,0.60136783]
[1641155138942,0.31653864,46975.0,46974.0,0.60136783]
[1641155139346,0.50653864,46975.0,46974.0,0.60136783]
[1641155140744,0.31653864,46975.0,46974.0,0.60136783]
[1641155141445,0.50653864,46975.0,46974.0,0.60136783]
[1641155142447,0.68653864,46975.0,46974.0,0.60136783]
[1641155142649,0.31653864,46975.0,46974.0,0.60136783]
[1641155142850,0.61750961,46975.0,46974.0,0.60136783]
[1641155143047,0.61750961,46975.0,46973.0,0.60136783]
[1641155143549,1.42919351,46974.0,46973.0,0.60136783]
[1641155143849,1.55016448,46974.0,46973.0,0.60136783]
[1641155144455,2.84616448,46974.0,46973.0,0.60136783]
[1641155144851,1.73016448,46974.0,46973.0,0.60136783]
[1641155145454,1.91816448,46974.0,46973.0,0.60136783]
[1641155145656,0.58723354,46974.0,46973.0,0.60136783]
[1641155145872,0.58723354,46974.0,46972.0,0.8427101]
[1641155145873,0.58723354,46974.0,46972.0,0.60136783]
[1641155146263,0.46626257,46974.0,46972.0,0.60136783]
[1641155146463,0.00753342,46973.0,46972.0,0.60136783]
[1641155147460,0.28626257,46973.0,46972.0,0.8427101]
[1641155147659,0.46626257,46973.0,46972.0,0.8427101]
[1641155148465,1.79720211,46973.0,46972.0,0.8427101]
[1641155148661,1.60920211,46973.0,46972.0,0.8427101]
[1641155149360,1.79720211,46973.0,46972.0,0.8427101]
[1641155151263,1.60920211,46973.0,46972.0,0.8427101]
[1641155151462,1.79720211,46973.0,46972.0,0.8427101]
[1641155151864,2.91320211,46973.0,46972.0,0.8427101]
[1641155152064,1.79720211,46973.0,46972.0,0.8427101]
[1641155152464,2.73320211,46973.0,46972.0,0.8427101]
[1641155152669,1.60920211,46973.0,46972.0,0.8427101]
[1641155153464,1.79720211,46973.0,46972.0,0.8427101]
[1641155155068,1.79720211,46973.0,46971.0,0.8427101]
[1641155155771,0.00753342,46972.0,46971.0,0.8427101]
[1641155156068,0.09826257,46972.0,46971.0,0.8427101]
[1641155157473,0.28526257,46972.0,46971.0,0.8447101]
[1641155159480,1.58826257,46972.0,46971.0,0.8807101]
[1641155159887,0.47226257,46972.0,46971.0,0.8807101]
[1641155160481,1.80320211,46972.0,46971.0,0.8807101]
[1641155160680,1.42920211,46972.0,46971.0,0.8427101]
[1641155160888,1.50490396,46972.0,46971.0,0.8427101]
[1641155161289,0.17396442,46972.0,46971.0,0.8427101]
[1641155161483,0.36596442,46972.0,46971.0,0.8427101]
[1641155162589,0.17396442,46972.0,46971.0,0.8427101]
[1641155163394,0.36196442,46972.0,46971.0,0.8427101]
[1641155164291,0.354431,46972.0,46971.0,0.8427101]
[1641155164492,0.354431,46972.0,46968.0,0.14033567]
[1641155164493,0.354431,46972.0,46970.0,1.20387158]
[1641155164692,0.35390512,46972.0,46970.0,1.20387158]
[1641155164892,0.17390512,46972.0,46970.0,1.20387158]
[1641155165096,0.00747412,46971.0,46970.0,1.20387158]
[1641155165492,0.09820327,46971.0,46970.0,1.26087158]
[1641155166892,0.09820327,46971.0,46970.0,1.20387158]
[1641155167493,0.28620327,46971.0,46970.0,1.32387158]
[1641155168694,0.09820327,46971.0,46970.0,1.20387158]
[1641155168899,0.09820327,46971.0,46969.0,1.20387158]
[1641155169195,0.00747412,46970.0,46969.0,1.20387158]
[1641155169497,0.09820327,46970.0,46969.0,1.31087158]
[1641155170695,0.09820327,46970.0,46968.0,1.34420725]
[1641155171195,0.09820327,46969.0,46968.0,1.34420725]
[1641155172096,0.09820327,46969.0,46968.0,0.14033567]
[1641155173495,0.28620327,46969.0,46968.0,0.14033567]
[1641155173696,0.34352634,46969.0,46968.0,0.14033567]
[1641155174097,0.34352634,46969.0,46968.0,1.3467038]
[1641155175197,0.15552634,46969.0,46968.0,1.3467038]
[1641155175403,0.34352634,46969.0,46968.0,1.3467038]
[1641155175899,0.34352634,46969.0,46968.0,0.14033567]
[1641155176597,0.52352634,46969.0,46968.0,0.14033567]
[1641155176798,0.33552634,46969.0,46968.0,0.14033567]
[1641155177198,0.33552634,46969.0,46968.0,1.34647404]
[1641155177400,0.52252634,46969.0,46968.0,1.34647404]
[1641155177599,0.34252634,46969.0,46968.0,1.34647404]
[1641155178201,0.34252634,46969.0,46968.0,0.14033567]
[1641155178800,0.15552634,46969.0,46968.0,0.14033567]
[1641155179501,0.52252634,46969.0,46968.0,0.14033567]
[1641155180608,0.15552634,46969.0,46968.0,0.14033567]
[1641155181302,0.34352634,46969.0,46968.0,0.14033567]
[1641155182705,0.15552634,46969.0,46968.0,0.14033567]
[1641155182905,0.15552634,46969.0,46968.0,0.98495576]
[1641155183406,0.34352634,46969.0,46968.0,0.98495576]
[1641155184707,0.15552634,46969.0,46968.0,0.98495576]
[1641155185308,0.34352634,46969.0,46968.0,0.98495576]
[1641155185712,0.34352634,46969.0,46968.0,0.14033567]
[1641155187011,0.34352634,46969.0,46968.0,0.98552111]
[1641155187211,0.15552634,46969.0,46968.0,0.98552111]
[1641155187411,0.34352634,46969.0,46968.0,0.98552111]
[1641155188012,0.34352634,46969.0,46968.0,0.14033567]
[1641155188721,0.15552634,46969.0,46968.0,0.14033567]
[1641155188916,0.15552634,46969.0,46968.0,0.98640012]
[1641155189315,0.34352634,46969.0,46968.0,0.98640012]
[1641155190719,0.15552634,46969.0,46968.0,0.98640012]
[1641155191325,0.34352634,46969.0,46968.0,0.98640012]
[1641155191822,0.34352634,46969.0,46968.0,0.14033567]
[1641155192942,0.15552634,46969.0,46968.0,0.14033567]
[1641155193433,0.28720327,46969.0,46968.0,0.21715275]
[1641155193633,1.33093954,46973.0,46968.0,0.21715275]
[1641155193841,1.33093954,46973.0,46972.0,0.18]
[1641155194233,1.33093954,46975.0,46972.0,0.18]
[1641155194433,1.33093954,46975.0,46974.0,0.18]
[1641155194633,1.33093954,46975.0,46974.0,0.32033567]
[1641155194833,1.33740329,46975.0,46974.0,0.33243096]
[1641155195536,0.00646375,46975.0,46974.0,0.52143096]
[1641155196235,1.33093954,46981.0,46974.0,0.52143096]
[1641155196236,0.00646375,46980.0,46974.0,0.52143096]
[1641155196446,1.42649824,46981.0,46977.0,0.18]
[1641155196637,1.42649824,46981.0,46979.0,0.14033567]
[1641155196838,0.12095357,46980.0,46979.0,0.14033567]
[1641155197338,1.42649824,46981.0,46979.0,0.32633567]
[1641155197839,0.0955587,46981.0,46979.0,0.92884328]
[1641155198641,0.0955587,46981.0,46979.0,0.74284328]
[1641155199444,0.0955587,46981.0,46979.0,0.92784328]
[1641155199842,0.0955587,46981.0,46979.0,1.77135394]
[1641155200042,0.0955587,46981.0,46980.0,0.60250761]
[1641155200849,1.33093954,46983.0,46980.0,0.60250761]
[1641155201245,0.07145201,46982.0,46980.0,0.60250761]
[1641155201453,0.07145201,46982.0,46980.0,0.78550761]
[1641155202846,0.07145201,46982.0,46980.0,0.60250761]
[1641155203449,0.07145201,46982.0,46980.0,0.78650761]
[1641155204551,0.07145201,46982.0,46981.0,0.60250761]
[1641155205553,0.07145201,46982.0,46981.0,0.78750761]
[1641155206653,0.07145201,46982.0,46981.0,0.60250761]
[1641155207459,0.07145201,46982.0,46981.0,0.78750761]
[1641155208755,0.07145201,46982.0,46981.0,0.60250761]
[1641155209358,0.16217919,46982.0,46981.0,0.78750761]
[1641155209956,0.07145201,46982.0,46981.0,0.78750761]
[1641155210157,0.07145201,46982.0,46981.0,0.185]
[1641155210158,0.67550391,46982.0,46981.0,0.185]
[1641155210758,0.67550391,46982.0,46979.0,0.14033567]
[1641155211559,0.36889246,46981.0,46979.0,0.32633567]
[1641155211964,0.00646366,46980.0,46979.0,0.32633567]
[1641155212760,0.00646366,46980.0,46979.0,0.14033567]
[1641155213661,0.00646366,46980.0,46979.0,0.32833567]
[1641155215363,0.00646366,46981.0,46979.0,0.32833567]
[1641155215566,0.00646366,46980.0,46979.0,0.32833567]
[1641155216265,0.00646366,46981.0,46979.0,0.32833567]
[1641155216567,0.00646366,46980.0,46979.0,0.32833567]
[1641155216766,0.00646366,46980.0,46977.0,0.36126762]
[1641155216968,0.00646366,46980.0,46978.0,0.36126762]
[1641155217166,0.00646366,46981.0,46979.0,0.28067134]
[1641155217367,0.00646366,46981.0,46979.0,0.5666932]
[1641155217573,0.00646366,46981.0,46979.0,0.8860462]
[1641155217769,0.43388081,46982.0,46979.0,0.8860462]
[1641155218569,0.43388081,46982.0,46979.0,0.5666932]
[1641155218768,0.43388081,46982.0,46979.0,0.28067134]
[1641155219173,1.31729044,46980.0,46979.0,0.50160329]
[1641155219370,1.31829044,46980.0,46979.0,0.36126762]
[1641155219574,1.31829044,46980.0,46979.0,0.17976762]
[1641155220074,1.43926397,46980.0,46979.0,0.17976762]
[1641155220473,1.25926397,46980.0,46979.0,0.17976762]
[1641155220674,0.23300155,46980.0,46979.0,0.17976762]
[1641155220874,0.23300155,46980.0,46975.0,0.14033567]
[1641155221774,0.001,46976.0,46975.0,0.14033567]
[1641155221973,0.0907,46976.0,46975.0,0.14033567]
[1641155222181,0.19421823,46976.0,46975.0,0.14033567]
[1641155222374,0.37421823,46976.0,46975.0,0.14033567]
[1641155223577,0.46495581,46976.0,46975.0,0.29333567]
[1641155223779,0.28495581,46976.0,46975.0,0.29333567]
[1641155223977,0.46495581,46976.0,46975.0,0.29333567]
[1641155224277,0.19421823,46976.0,46975.0,0.29333567]
[1641155224479,0.79457513,46976.0,46975.0,0.29333567]
[1641155225480,0.79457513,46976.0,46975.0,0.28533567]
[1641155226788,0.79457513,46976.0,46975.0,0.14033567]
[1641155227492,0.79457513,46976.0,46975.0,0.28333567]
[1641155227493,0.79357513,46976.0,46975.0,0.28333567]
[1641155227691,0.79357513,46976.0,46975.0,0.37697567]
[1641155227990,0.10351823,46976.0,46975.0,0.37697567]
[1641155228790,0.10351823,46976.0,46975.0,0.23397567]
[1641155229092,0.6003569,46977.0,46975.0,0.23397567]
[1641155229491,0.6003569,46977.0,46975.0,0.42397567]
[1641155229692,0.84083179,46978.0,46975.0,0.42397567]
[1641155229693,0.6003569,46980.0,46975.0,0.42397567]
[1641155230793,0.6003569,46980.0,46976.0,0.0120951]
[1641155231193,0.3577768,46981.0,46976.0,0.0120951]
[1641155231593,0.3577768,46981.0,46976.0,0.1970951]
[1641155231894,0.06137617,46982.0,46976.0,0.185]
[1641155233000,0.00646355,46981.0,46975.0,0.23397567]
[1641155233195,0.00646355,46981.0,46975.0,0.14033567]
[1641155233695,0.00646355,46981.0,46975.0,0.32733567]
[1641155234299,0.00646355,46981.0,46976.0,0.01209511]
[1641155234498,0.00646355,46981.0,46976.0,0.08031511]
[1641155234700,0.00646355,46981.0,46979.0,0.18]
[1641155234898,0.84083179,46985.0,46980.0,0.02128151]
[1641155235103,0.02,46995.0,46984.0,0.18]
[1641155235300,0.02,46995.0,46989.0,0.18]
[1641155235301,1.57022397,46992.0,46989.0,0.18]
[1641155235501,3.54540008,47003.0,46991.0,0.46067134]
[1641155235700,1.69150008,47003.0,46996.0,0.18]
[1641155236205,0.12710791,47002.0,46999.0,0.18]
[1641155236399,0.00619265,47002.0,46999.0,0.24321]
[1641155236800,0.00619265,47001.0,46999.0,0.24321]
[1641155237202,0.00619265,47002.0,46999.0,0.24321]
[1641155237606,0.06109991,47010.0,47001.0,0.14033567]
[1641155237801,0.05490726,47010.0,47001.0,0.32033567]
[1641155239000,0.05490726,47010.0,47001.0,0.14033567]
[1641155239601,0.05490726,47010.0,47001.0,0.31933567]
[1641155240902,0.05490726,47010.0,47001.0,0.14033567]
[1641155240903,1.44139461,47005.0,47001.0,0.14033567]
[1641155241603,1.44139461,47005.0,47001.0,0.32633567]
[1641155241805,1.44139461,47006.0,47001.0,0.32633567]
[1641155243004,1.44139461,47006.0,47001.0,0.14033567]
[1641155243207,1.44139461,47007.0,47001.0,0.14033567]
[1641155243606,1.44139461,47007.0,47001.0,0.32733567]
[1641155244307,1.44139461,47008.0,47002.0,0.84351066]
[1641155244908,1.44139461,47008.0,47001.0,0.32733567]
[1641155244909,1.25633567,47011.0,47001.0,0.14033567]
[1641155245208,0.07837,47008.0,47001.0,0.14033567]
[1641155245608,0.18,47006.0,47001.0,0.31733567]
[1641155245910,0.02127932,47004.0,47001.0,0.31733567]
[1641155246907,0.02127932,47004.0,47001.0,0.14033567]
[1641155247309,0.18,47003.0,47001.0,0.14033567]
[1641155247509,0.02127932,47004.0,47001.0,0.31833567]
[1641155248710,0.35945099,47003.0,47001.0,0.31833567]
[1641155248910,1.47545099,47003.0,47001.0,0.14033567]
[1641155249411,0.35945099,47003.0,47001.0,0.14033567]
[1641155249611,0.35945099,47003.0,47001.0,0.32033567]
[1641155250611,1.47545099,47003.0,47001.0,0.32033567]
[1641155250811,1.65545099,47003.0,47001.0,0.32033567]
[1641155251111,0.35945099,47003.0,47001.0,0.14033567]
[1641155251513,0.35945099,47003.0,47001.0,0.32033567]
[1641155251713,0.35945099,47004.0,47001.0,0.32033567]
[1641155253018,0.00679891,47003.0,47001.0,0.14033567]
[1641155253615,0.00679891,47003.0,47001.0,0.32333567]
[1641155254214,0.00679891,47004.0,47001.0,0.32333567]
[1641155254415,0.00679891,47002.0,47001.0,0.32333567]
[1641155254614,0.00679891,47003.0,47001.0,0.32333567]
[1641155254814,0.00679891,47002.0,47001.0,0.32333567]
[1641155255016,0.00679891,47002.0,47001.0,0.14033567]
[1641155255214,0.00679891,47004.0,47001.0,0.14033567]
[1641155255416,0.59914784,47007.0,47001.0,0.14033567]
[1641155255417,0.00679891,47002.0,47001.0,0.14033567]
[1641155255629,0.00679891,47003.0,47001.0,0.32933567]
[1641155256021,0.39052204,47009.0,47001.0,0.32933567]
[1641155256022,0.00679891,47002.0,47001.0,0.32933567]
[1641155256619,0.02127705,47009.0,47001.0,0.32933567]
[1641155256620,0.00679891,47008.0,47001.0,0.32933567]
[1641155256823,0.00679891,47002.0,47001.0,0.14033567]
[1641155257020,0.00679891,47007.0,47001.0,0.14033567]
[1641155257224,0.00679891,47002.0,47001.0,0.14033567]
[1641155257522,0.00679891,47008.0,47001.0,0.14033567]
[1641155257724,0.00679891,47002.0,47001.0,0.32733567]
[1641155258124,0.00679891,47007.0,47001.0,0.32733567]
[1641155258322,0.00679891,47002.0,47001.0,0.32733567]
[1641155258523,0.00679891,47006.0,47001.0,0.32733567]
[1641155258923,0.00679891,47002.0,47001.0,0.14033567]
[1641155259124,0.00679891,47005.0,47002.0,0.318736]
[1641155259324,0.49978666,47011.0,47001.0,0.63840867]
[1641155259723,0.49978666,47011.0,47002.0,0.512144]
[1641155260525,0.14033567,47011.0,47002.0,0.692144]
[1641155260925,0.14033567,47011.0,47002.0,0.499144]
[1641155261127,0.14033567,47011.0,47002.0,0.18]
[1641155261626,0.14033567,47011.0,47002.0,0.365]
[1641155262826,0.14033567,47011.0,47002.0,0.185]
[1641155263126,0.14033567,47011.0,47001.0,0.14033567]
[1641155263728,0.14033567,47011.0,47001.0,0.32533567]
[1641155263927,0.23140567,47011.0,47001.0,0.32533567]
[1641155265028,0.23140567,47011.0,47001.0,0.14033567]
[1641155265629,0.23140567,47011.0,47001.0,0.32333567]
[1641155267028,0.23140567,47011.0,47001.0,0.14033567]
[1641155267230,0.23140567,47011.0,47001.0,0.28585228]
[1641155267231,0.14033567,47011.0,47001.0,0.28585228]
[1641155267644,0.14033567,47011.0,47002.0,0.317188]
[1641155268046,0.14033567,47011.0,47001.0,0.47185228]
[1641155268747,0.14033567,47011.0,47001.0,0.65185228]
[1641155268945,0.14033567,47011.0,47001.0,0.28585228]
[1641155269748,0.14033567,47011.0,47001.0,0.32433567]
[1641155270949,0.14033567,47011.0,47001.0,0.14033567]
[1641155271752,0.14033567,47011.0,47001.0,0.32333567]
[1641155272951,0.14033567,47011.0,47001.0,0.14033567]
[1641155273656,0.14033567,47011.0,47001.0,0.32333567]
[1641155274352,0.00679873,47010.0,47001.0,0.32333567]
[1641155274854,0.00679873,47010.0,47001.0,0.14033567]
[1641155275055,0.35945099,47009.0,47001.0,0.14033567]
[1641155275454,0.00679873,47008.0,47001.0,0.14033567]
[1641155275654,0.00679873,47008.0,47001.0,0.32633567]
[1641155276957,0.00679873,47008.0,47001.0,0.14033567]
[1641155277657,0.00679873,47008.0,47001.0,0.32733567]
[1641155279661,0.36624972,47008.0,47001.0,0.51433567]
[1641155280362,0.00679873,47007.0,47001.0,0.51433567]
[1641155281061,0.00679873,47007.0,47001.0,0.14033567]
[1641155281663,0.09068689,47006.0,47005.0,0.36187494]
[1641155282063,0.09748562,47006.0,47005.0,0.36187494]
[1641155283665,0.09748562,47006.0,47005.0,0.19]
[1641155284668,0.09748562,47006.0,47005.0,0.55187494]
[1641155284866,0.09748562,47006.0,47005.0,0.36187494]
[1641155285668,0.09748562,47006.0,47005.0,0.55187494]
[1641155285867,0.09748562,47006.0,47005.0,0.19]
[1641155287169,0.09748562,47006.0,47004.0,0.60309726]
[1641155287767,0.09748562,47006.0,47004.0,0.79309726]
[1641155287967,0.00679873,47005.0,47004.0,0.79309726]
[1641155288168,0.09748562,47005.0,47004.0,0.79309726]
[1641155289068,0.09748562,47005.0,47003.0,0.84351066]
[1641155289467,0.00679873,47004.0,47003.0,0.84351066]
[1641155289672,0.08123873,47004.0,47003.0,1.03351066]
[1641155289868,0.17192562,47004.0,47003.0,0.19]
[1641155290970,0.20214391,47004.0,46996.0,1.32471352]
[1641155291270,0.18,46998.0,46996.0,1.32471352]
[1641155291873,0.02128236,46997.0,46996.0,1.32471352]
[1641155292069,0.16841676,46997.0,46996.0,1.32471352]
[1641155292469,0.16841676,46997.0,46991.0,0.63014853]
[1641155292470,0.16841676,46997.0,46991.0,1.32471352]
[1641155292670,0.1471344,46997.0,46991.0,1.32471352]
[1641155293072,0.00679873,46996.0,46991.0,1.32471352]
[1641155293472,0.09748562,46996.0,46991.0,1.32471352]
[1641155293672,0.09748562,46996.0,46988.0,1.32471352]
[1641155293673,0.28948562,46996.0,46988.0,1.32471352]
[1641155293871,0.00679873,46995.0,46988.0,1.32471352]
[1641155294274,0.84210835,46990.0,46988.0,1.32471352]
[1641155294576,0.92584835,46990.0,46988.0,1.32471352]
[1641155294772,0.00679873,46989.0,46988.0,1.32471352]
[1641155295173,0.00679873,46989.0,46988.0,1.50471352]
[1641155295374,0.00679873,46989.0,46988.0,1.51680487]
[1641155295575,0.00679873,46989.0,46988.0,1.33680487]
[1641155295775,0.08479873,46989.0,46988.0,0.19609135]
[1641155296078,0.08479873,46989.0,46988.0,0.37609135]
[1641155296576,0.08479873,46989.0,46988.0,0.19609135]
[1641155297078,0.00679873,46989.0,46988.0,0.01209135]
[1641155297476,0.00679873,46989.0,46987.0,0.18]
[1641155297676,0.10179873,46989.0,46988.0,0.182]
[1641155298877,1.03461378,46989.0,46988.0,1.51236492]
[1641155299080,0.93961378,46989.0,46988.0,1.33036492]
[1641155299684,1.11661378,46989.0,46988.0,1.50936492]
[1641155299978,1.11661378,46989.0,46988.0,0.179]
[1641155300979,0.93961378,46989.0,46987.0,1.33036492]
[1641155301580,0.00679873,46988.0,46987.0,1.33036492]
[1641155301782,0.00679873,46988.0,46987.0,1.51136492]
[1641155302284,0.09750543,46988.0,46987.0,1.51136492]
[1641155302480,0.09750543,46988.0,46987.0,1.52345692]
[1641155302687,0.09750543,46988.0,46987.0,1.70345692]
[1641155302881,0.60897379,46988.0,46987.0,0.373092]
[1641155303081,0.60897379,46988.0,46987.0,0.192092]
[1641155303580,0.60897379,46988.0,46987.0,0.012092]
[1641155303781,0.68997379,46988.0,46987.0,0.197092]
[1641155303980,0.68997379,46988.0,46987.0,0.185]
[1641155304183,0.68997379,46988.0,46987.0,0.365]
[1641155304382,0.68997379,46988.0,46987.0,0.377092]
[1641155304983,0.00679873,46988.0,46987.0,0.192092]
[1641155305485,0.58746037,46989.0,46987.0,0.192092]
[1641155305684,0.113,46988.0,46987.0,0.39937111]
[1641155305883,0.113,46988.0,46987.0,0.70855611]
[1641155306685,0.113,46988.0,46987.0,0.72064708]
[1641155306885,0.113,46988.0,46987.0,0.54064708]
[1641155307389,0.21614567,46992.0,46987.0,0.35464708]
[1641155307786,0.157,46988.0,46987.0,0.52755611]
[1641155308288,0.16373404,46988.0,46987.0,0.52755611]
[1641155309088,0.00673404,46988.0,46987.0,0.34255611]
[1641155309687,0.157,46988.0,46987.0,0.20627911]
[1641155309892,0.16373404,46988.0,46987.0,0.20627911]
[1641155311093,0.16373404,46988.0,46987.0,0.02127911]
[1641155311293,0.00673404,46988.0,46987.0,0.02127911]
[1641155311696,0.16373404,46988.0,46987.0,0.20627911]
[1641155312097,0.157,46988.0,46987.0,0.20627911]
[1641155312696,0.16373404,46988.0,46987.0,0.52743011]
[1641155313097,0.16373404,46988.0,46987.0,0.34243011]
[1641155313397,0.00673404,46988.0,46987.0,0.34243011]
[1641155313897,0.16073404,46988.0,46987.0,0.20727911]
[1641155314098,0.16073404,46988.0,46987.0,1.65850832]
[1641155315299,0.00673404,46988.0,46987.0,1.47250832]
[1641155315700,0.16373404,46988.0,46987.0,1.65750832]
[1641155316606,0.16373404,46988.0,46987.0,0.20627911]
[1641155317006,0.16373404,46988.0,46987.0,0.02127911]
[1641155317208,0.00673404,46988.0,46987.0,0.02127911]
[1641155317707,0.16373404,46988.0,46987.0,0.20627911]
[1641155319007,0.00673404,46988.0,46987.0,0.02127911]
[1641155319706,0.15773404,46988.0,46987.0,0.20727911]
[1641155320007,0.15773404,46988.0,46987.0,1.65850832]
[1641155321107,0.00673404,46988.0,46987.0,1.47250832]
[1641155321511,0.00673404,46988.0,46987.0,1.45122921]
[1641155321713,0.18973404,46988.0,46987.0,1.62722921]
[1641155322109,0.18973404,46988.0,46987.0,0.176]
[1641155322110,0.79294212,46988.0,46987.0,0.176]
[1641155322912,0.62411211,46990.0,46987.0,0.99827886]
[1641155323110,0.14033567,47005.0,46989.0,0.18]
[1641155323309,1.44139461,46998.0,46994.0,0.18]
[1641155323710,1.44139461,46998.0,46994.0,0.371]
[1641155324113,0.00497315,46997.0,46994.0,0.371]
[1641155324815,0.00497315,46997.0,46995.0,0.01209016]
[1641155325420,0.009794,47004.0,46994.0,0.14033567]
[1641155325615,0.0741,47000.0,46994.0,0.14033567]
[1641155325816,0.00504011,46996.0,46995.0,0.191]
[1641155326017,0.00504011,46999.0,46995.0,0.191]
[1641155326417,0.00504011,46996.0,46995.0,0.191]
[1641155326818,0.00504011,46999.0,46995.0,0.20309011]
[1641155327018,0.00504011,46996.0,46995.0,0.20309011]
[1641155327227,0.00504011,46996.0,46995.0,0.01209011]
[1641155327618,0.00504011,46999.0,46995.0,0.01209011]
[1641155327818,0.00504011,46996.0,46995.0,0.20409011]
[1641155328426,0.00504011,46998.0,46995.0,0.20409011]
[1641155328618,0.00504011,46996.0,46995.0,0.20409011]
[1641155328818,0.00504011,46997.0,46995.0,0.192]
[1641155329218,0.00504011,46996.0,46994.0,0.32033567]
[1641155329419,0.00504011,46996.0,46994.0,0.14033567]
[1641155329618,0.009794,47004.0,46995.0,1.33012469]
[1641155329619,0.00504011,47003.0,46995.0,1.33012469]
[1641155329819,0.009794,47004.0,46995.0,1.33012469]
[1641155330320,0.009794,47004.0,46999.0,1.20921283]
[1641155330830,0.14033567,47005.0,46999.0,1.20921283]
[1641155331022,1.44139461,47006.0,46999.0,1.20921283]
[1641155331223,1.44139461,47006.0,47004.0,0.18]
[1641155331420,1.44139461,47006.0,47004.0,0.26595]
[1641155331622,1.44139461,47006.0,47005.0,0.320582]
[1641155331822,1.44139461,47006.0,47005.0,0.321582]
[1641155332223,1.44139461,47006.0,47005.0,0.320582]
[1641155332424,0.14033567,47010.0,47005.0,0.320582]
[1641155333632,1.44139461,47013.0,47009.0,0.20126778]
[1641155333926,1.9379,47022.0,47012.0,1.00126603]
[1641155333927,1.32980076,47015.0,47012.0,1.00126603]
[1641155334127,0.01603964,47021.0,47014.0,0.18]
[1641155334525,0.01603964,47021.0,47015.0,0.000427]
[1641155334726,0.01603964,47021.0,47015.0,0.069987]
[1641155334927,0.01603964,47021.0,47020.0,0.28067134]
[1641155335125,3.55860008,47033.0,47020.0,0.28067134]
[1641155335324,1.69150008,47033.0,47020.0,0.60046234]
[1641155335526,0.14033567,47036.0,47020.0,0.60046234]
[1641155335728,0.12085401,47032.0,47020.0,0.60046234]
[1641155335930,0.30085401,47032.0,47020.0,0.77946234]
[1641155336125,0.14033567,47036.0,47020.0,0.77946234]
[1641155336126,0.18,47029.0,47020.0,0.45967134]
[1641155336527,0.12085401,47033.0,47025.0,0.36153546]
[1641155336729,0.18,47029.0,47025.0,0.36153546]
[1641155336925,0.12085401,47031.0,47025.0,0.50187113]
[1641155337129,0.12085401,47028.0,47025.0,0.50187113]
[1641155337827,0.12085401,47028.0,47025.0,0.68587113]
[1641155338431,0.18,47029.0,47025.0,0.68587113]
[1641155339130,0.18,47032.0,47025.0,0.50187113]
[1641155339330,1.54111661,47027.0,47025.0,0.50187113]
[1641155339930,1.54111661,47027.0,47025.0,0.68787113]
[1641155340131,1.45046269,47028.0,47026.0,0.36153546]
[1641155341533,1.45046269,47029.0,47027.0,0.36153546]
[1641155342330,1.45046269,47029.0,47026.0,0.192]
[1641155342331,0.009794,47035.0,47026.0,0.192]
[1641155343044,0.12084968,47034.0,47026.0,0.192]
[1641155343242,0.12084968,47034.0,47025.0,0.14033567]
[1641155343635,0.12084968,47035.0,47025.0,0.14033567]
[1641155343833,0.12084968,47033.0,47025.0,0.32433567]
[1641155344032,0.12084968,47034.0,47025.0,0.32433567]
[1641155344233,0.18,47032.0,47025.0,0.32433567]
[1641155345034,0.12084958,47031.0,47025.0,0.32433567]
[1641155345233,0.12581821,47031.0,47025.0,0.32433567]
[1641155345433,0.00496863,47030.0,47025.0,0.32433567]
[1641155345634,0.12581821,47030.0,47025.0,0.32433567]
[1641155345934,0.12581821,47030.0,47025.0,0.32533567]
[1641155346139,0.00496863,47029.0,47025.0,0.32533567]
[1641155346734,0.00496863,47031.0,47025.0,0.32533567]
[1641155347137,0.00496863,47028.0,47025.0,0.32533567]
[1641155347335,0.00496863,47030.0,47025.0,0.14033567]
[1641155347538,0.00496863,47027.0,47025.0,0.14033567]
[1641155347837,0.00496863,47029.0,47025.0,0.32733567]